{"text_format":"1","workbook":"xlsx","n_sheets":4,"sheets":["PLANO DE AÇÃO","Anexo - Transitados","INSTRUÇÕES","SE e CIM"],"not_rendered":{"charts":0,"images":2,"macros":1,"external_links":0,"defined_names":8,"comments":0,"pivot_tables":0},"unopened":[],"bounds":{"document_bytes":16777216,"sheet_cells":100000,"rows_first":2000,"rows_last":500,"rows_between":2000,"halvings":0,"cell_chars":16384,"cell_head_chars":4096},"cells_cut":0,"cells_raw":0,"read":"whole","date_system":"1900"}

{"sheet":"PLANO DE AÇÃO","index":0,"n_rows":240,"n_cols":22,"rows_kept":240,"cut":false,"hidden":false,"merged":[[120,8,120,10],[120,11,120,13],[120,14,120,16],[120,20,120,22],[128,11,128,13],[128,14,128,16],[128,17,128,19],[128,20,128,22],[120,1,120,7],[125,8,125,10],[126,8,126,10],[127,8,127,10],[128,8,128,10],[127,20,127,22],[125,17,125,19],[125,20,125,22],[121,11,121,13],[121,14,121,16],[221,11,221,13],[221,14,221,16],[221,17,221,19],[221,20,221,22],[220,11,220,13],[220,14,220,16],[220,17,220,19],[220,20,220,22],[221,8,221,10],[224,11,224,13],[224,14,224,16],[224,17,224,19],[224,20,224,22],[222,11,222,13],[222,14,222,16],[222,17,222,19],[222,20,222,22],[223,11,223,13],[223,14,223,16],[223,17,223,19],[223,20,223,22],[214,11,214,13],[214,14,214,16],[214,17,214,19],[214,20,214,22],[215,11,215,13],[215,14,215,16],[215,17,215,19],[215,20,215,22],[219,11,219,13],[219,14,219,16],[219,17,219,19],[219,20,219,22],[211,11,211,13],[211,14,211,16],[211,17,211,19],[211,20,211,22],[213,11,213,13],[213,14,213,16],[213,17,213,19],[213,20,213,22],[212,11,212,13],[212,14,212,16],[212,17,212,19],[212,20,212,22],[206,11,206,13],[206,14,206,16],[206,17,206,19],[206,20,206,22],[210,11,210,13],[210,14,210,16],[210,17,210,19],[210,20,210,22],[206,8,206,10],[210,8,210,10],[202,11,202,13],[202,14,202,16],[202,17,202,19],[202,20,202,22],[204,11,204,13],[204,14,204,16],[204,17,204,19],[204,20,204,22],[205,11,205,13],[205,14,205,16],[205,17,205,19],[205,20,205,22],[203,11,203,13],[203,14,203,16],[203,17,203,19],[203,20,203,22],[196,11,196,13],[196,14,196,16],[196,17,196,19],[196,20,196,22],[197,11,197,13],[197,14,197,16],[197,17,197,19],[197,20,197,22],[201,11,201,13],[201,14,201,16],[201,17,201,19],[201,20,201,22],[139,8,139,10],[193,11,193,13],[193,14,193,16],[193,17,193,19],[193,20,193,22],[195,11,195,13],[195,14,195,16],[195,17,195,19],[195,20,195,22],[171,11,171,12],[171,13,171,14],[178,17,178,18],[179,17,179,18],[183,11,183,12],[183,13,183,14],[183,15,183,16],[184,11,184,12],[184,13,184,14],[184,15,184,16],[194,11,194,13],[194,14,194,16],[194,17,194,19],[194,20,194,22],[192,20,192,22],[177,11,177,12],[177,13,177,14],[177,15,177,16],[147,11,147,13],[147,14,147,16],[147,20,147,22],[148,11,148,13],[148,14,148,16],[148,17,148,19],[148,20,148,22],[172,11,172,12],[170,11,170,12],[156,10,156,17],[158,10,158,17],[147,17,147,19],[107,13,107,14],[125,11,125,13],[125,14,125,16],[137,20,137,22],[138,17,138,19],[138,20,138,22],[176,11,176,12],[176,13,176,14],[176,15,176,16],[146,17,146,19],[146,20,146,22],[118,20,118,22],[117,11,117,13],[108,13,108,14],[109,13,109,14],[109,15,109,16],[109,17,109,18],[109,19,109,20],[130,17,130,19],[130,20,130,22],[126,11,126,13],[126,14,126,16],[118,14,118,16],[93,19,93,20],[94,15,94,16],[94,17,94,18],[94,19,94,20],[104,13,105,14],[100,19,100,20],[100,21,100,22],[104,15,105,16],[105,17,105,18],[105,19,105,20],[87,21,87,22],[89,13,90,14],[91,13,91,14],[92,13,92,14],[91,17,91,18],[91,19,91,20],[92,15,92,16],[92,17,92,18],[92,19,92,20],[85,19,85,20],[70,11,70,12],[70,13,70,14],[70,15,70,16],[70,17,70,18],[70,19,70,20],[82,13,83,14],[82,15,82,18],[82,19,83,20],[79,13,79,14],[84,11,84,12],[84,13,84,14],[84,15,84,16],[84,17,84,18],[84,19,84,20],[71,13,71,14],[71,15,71,16],[71,17,71,18],[71,19,71,20],[78,13,78,14],[79,17,79,18],[54,19,54,20],[63,17,63,18],[63,19,63,20],[56,19,56,20],[64,13,64,14],[64,15,64,16],[64,17,64,18],[64,19,64,20],[57,13,57,14],[57,15,57,16],[57,17,57,18],[57,19,57,20],[239,6,239,10],[227,1,231,22],[233,5,233,7],[236,6,236,12],[121,20,121,22],[117,8,117,10],[118,8,118,10],[135,11,135,13],[135,14,135,16],[135,17,135,19],[135,20,135,22],[126,17,126,19],[126,20,126,22],[127,11,127,13],[127,14,127,16],[127,17,127,19],[129,11,129,13],[145,11,145,13],[145,14,145,16],[145,17,145,19],[145,20,145,22],[143,11,143,13],[143,14,143,16],[137,11,137,13],[85,21,85,22],[97,13,98,14],[22,6,22,11],[68,17,68,18],[32,1,32,22],[69,13,69,14],[69,11,69,12],[67,19,68,20],[69,19,69,20],[69,21,69,22],[69,17,69,18],[69,15,69,16],[72,11,72,12],[72,13,72,14],[87,15,87,16],[87,17,87,18],[87,19,87,20],[71,21,71,22],[56,21,56,22],[57,21,57,22],[55,11,55,12],[55,13,55,14],[55,15,55,16],[55,17,55,18],[18,16,18,18],[18,6,18,13],[62,13,62,14],[62,15,62,16],[62,17,62,18],[62,19,62,20],[59,13,60,14],[59,15,60,16],[61,13,61,14],[61,15,61,16],[61,17,61,18],[61,19,61,20],[60,17,60,18],[60,19,60,20],[22,20,22,22],[36,6,36,12],[55,19,55,20],[54,21,54,22],[55,21,55,22],[56,11,56,12],[56,13,56,14],[56,15,56,16],[56,17,56,18],[54,17,54,18],[36,13,36,22],[28,2,28,8],[29,2,29,8],[30,2,30,8],[35,1,35,5],[35,6,35,12],[35,13,35,22],[22,14,22,17],[27,1,27,22],[119,11,119,13],[14,6,14,15],[121,8,121,10],[14,18,14,22],[16,4,16,22],[18,3,18,4],[36,1,36,5],[77,17,77,18],[77,19,77,20],[78,15,78,16],[78,17,78,18],[78,19,78,20],[79,15,79,16],[77,13,77,14],[116,8,116,10],[119,8,119,10],[67,21,68,22],[100,11,100,12],[100,13,100,14],[100,15,100,16],[106,13,106,14],[116,20,116,22],[118,11,118,13],[116,14,116,16],[117,20,117,22],[116,11,116,13],[70,21,70,22],[67,13,68,14],[67,15,67,18],[76,13,76,14],[68,15,68,16],[72,15,72,16],[72,17,72,18],[72,19,72,20],[72,21,72,22],[71,11,71,12],[85,11,85,12],[116,17,116,19],[117,17,117,19],[117,14,117,16],[79,19,79,20],[89,15,90,16],[90,17,90,18],[90,19,90,20],[91,15,91,16],[84,21,84,22],[100,17,100,18],[99,15,99,16],[118,17,118,19],[97,15,97,18],[97,19,98,20],[97,21,98,22],[87,11,87,12],[87,13,87,14],[82,21,83,22],[129,14,129,16],[129,17,129,19],[129,20,129,22],[119,17,119,19],[120,17,120,19],[121,17,121,19],[106,15,106,16],[106,17,106,18],[106,19,106,20],[107,15,107,16],[107,17,107,18],[107,19,107,20],[108,15,108,16],[108,17,108,18],[108,19,108,20],[119,14,119,16],[119,20,119,22],[130,11,130,13],[130,14,130,16],[134,17,134,19],[144,14,144,16],[144,17,144,19],[144,20,144,22],[136,11,136,13],[136,14,136,16],[136,17,136,19],[136,20,136,22],[137,14,137,16],[138,11,138,13],[138,14,138,16],[139,11,139,13],[139,14,139,16],[144,11,144,13],[139,17,139,19],[139,20,139,22],[143,17,143,19],[143,20,143,22],[137,17,137,19],[134,20,134,22],[134,11,134,13],[134,14,134,16],[183,21,183,22],[184,17,184,18],[184,19,184,20],[184,21,184,22],[171,15,171,16],[172,15,172,16],[170,17,170,18],[171,17,171,18],[172,17,172,18],[179,15,179,16],[183,17,183,18],[183,19,183,20],[178,15,178,16],[185,21,185,22],[186,17,186,18],[186,19,186,20],[186,21,186,22],[54,9,54,10],[55,9,55,10],[56,9,56,10],[69,9,69,10],[70,9,70,10],[72,9,72,10],[84,9,84,10],[85,9,85,10],[87,9,87,10],[99,9,99,10],[100,9,100,10],[101,9,101,10],[74,15,75,16],[75,17,75,18],[75,19,75,20],[76,15,76,16],[76,17,76,18],[76,19,76,20],[146,11,146,13],[146,14,146,16],[129,1,129,7],[129,8,129,10],[130,8,130,10],[134,8,134,10],[135,8,135,10],[136,8,136,10],[137,8,137,10],[138,1,138,7],[138,8,138,10],[179,13,179,14],[185,11,185,12],[185,13,185,14],[185,15,185,16],[186,11,186,12],[186,13,186,14],[186,15,186,16],[178,11,178,12],[178,13,178,14],[179,11,179,12],[224,8,224,10],[193,8,193,10],[194,8,194,10],[195,8,195,10],[196,1,196,7],[196,8,196,10],[197,8,197,10],[201,8,201,10],[202,8,202,10],[203,8,203,10],[204,8,204,10],[205,1,205,7],[205,8,205,10],[211,8,211,10],[212,8,212,10],[213,8,213,10],[214,1,214,7],[214,8,214,10],[215,8,215,10],[219,8,219,10],[220,8,220,10],[222,8,222,10],[223,1,223,7],[223,8,223,10],[143,8,143,10],[144,8,144,10],[145,8,145,10],[146,8,146,10],[147,1,147,7],[147,8,147,10],[148,8,148,10],[192,8,192,10],[154,3,154,5],[154,10,154,17],[176,17,176,18],[177,17,177,18],[192,11,192,13],[192,14,192,16],[192,17,192,19],[170,13,170,14],[172,13,172,14],[170,15,170,16],[173,11,173,12],[173,13,173,14],[173,15,173,16],[173,17,173,18],[185,17,185,18],[185,19,185,20],[102,19,102,20],[102,21,102,22],[99,11,99,12],[99,13,99,14],[99,19,99,20],[99,21,99,22],[101,11,101,12],[101,13,101,14],[101,15,101,16],[101,17,101,18],[101,19,101,20],[101,21,101,22],[99,17,99,18],[83,17,83,18],[74,13,75,14],[41,3,41,9],[42,3,42,9],[43,3,43,9],[44,3,44,9],[102,9,102,10],[102,11,102,12],[102,13,102,14],[102,15,102,16],[102,17,102,18],[71,9,71,10],[63,13,63,14],[63,15,63,16],[77,15,77,16],[85,13,85,14],[85,15,85,16],[85,17,85,18],[98,15,98,16],[98,17,98,18],[94,13,94,14],[93,13,93,14],[93,15,93,16],[93,17,93,18],[5,0,5,23],[38,1,38,22],[86,9,86,10],[86,11,86,12],[86,13,86,14],[86,15,86,16],[86,17,86,18],[86,19,86,20],[86,21,86,22],[20,3,20,13],[20,16,20,22],[52,13,53,14],[52,15,52,18],[52,19,53,20],[52,21,53,22],[53,15,53,16],[53,17,53,18],[54,11,54,12],[54,13,54,14],[54,15,54,16],[12,20,12,22],[57,9,57,10],[57,11,57,12],[83,15,83,16]]}
[]
[]
[]
[]
[]
["CENTROS DE RECURSOS PARA A QUALIFICAÇÃO E O EMPREGO"]
[]
["PLANO DE AÇÃO "]
["TRIÉNIO ___________"]
[]
["1.","IDENTIFICAÇÃO DO CENTRO DE RECURSOS PARA A QUALIFICAÇÃO E O EMPREGO (CRQE)"]
[]
[null,"1.1 CRQE",null,null,"Nível 1","         ",null,"Nível 2","         ",null,"Nível 3","         ",null,null,null,null,null,null,null,"N.º de Processo: ","____/RC/___"]
[]
[null,"1.2 Denominação Social",null,null,null,null,null,null,null,null,null,null,null,null,null,null,null,"1.3 NIPC"]
[]
[null,"1.4 Endereço"]
[]
[null,null,"C. Postal",null,null,"-",null,null,null,null,null,null,null,null,null,"Telefone"]
[]
[null,null,"Concelho",null,null,null,null,null,null,null,null,null,null,null,null,"Email"]
[]
[null,"1.5 Técnico de contacto",null,null,null,null,null,null,null,null,null,null,null,"Cargo",null,null,null,null,null,"Telefone"]
[]
[]
["2.","ÁREA DE INTERVENÇÃO DO CRQE"]
[]
[null,"Identificação dos Serviços de Emprego relativamente aos quais o CRQE de nível 1 foi credenciado:"]
[null,{"$f":"IF(C29<>\"\",\"1º - \",\"\")","v":""}]
[null,{"$f":"IF(C30<>\"\",\"2º - \",\"\")","v":""}]
[null,{"$f":"IF(C31<>\"\",\"3º - \",\"\")","v":""}]
[]
[null,"Identificação das Comunidades Intermunicipais (CIM) relativamente às quais o CRQE de nível 2 foi credenciado:"]
[]
[null,"CIM",null,null,null,null,"Serviço(s) de Emprego",null,null,null,null,null,null,"Concelho(s)"]
[null,"Alto Tâmega",null,null,null,null,{"$f":"IF(B36=\"\",\"\",VLOOKUP(B36,TabelaCim,3,FALSE))","v":"Chaves"},null,null,null,null,null,null,{"$f":"IF(B36=\"\",\"\",VLOOKUP(B36,TabelaCim,4,FALSE))","v":"Boticas; Chaves; Montalegre; Ribeira De Pena; Valpaços; Vila Pouca De Aguiar "}]
[null,"Beira Baixa",null,null,null,null,{"$f":"IF(B37=\"\",\"\",VLOOKUP(B37,TabelaCim,3,FALSE))","v":"Castelo Branco; Sertã"},null,null,null,null,null,null,{"$f":"IF(B37=\"\",\"\",VLOOKUP(B37,TabelaCim,4,FALSE))","v":"Castelo Branco; Idanha-A-Nova; Penamacor; Vila Velha De Rodão Oleiros; Proença-A-Nova; Sertã; Vila De Rei "}]
[]
[null,"Identificação da área geográfica de intervenção do CRQE de nível 3:"]
[null,null,"Nacional "]
[null,null,"Regional"]
[null,null,{"$f":"IF(D42<>\"\",\"1º - \",\"\")","v":""}]
[null,null,{"$f":"IF(D43<>\"\",\"2º - \",\"\")","v":""}]
[null,null,{"$f":"IF(D44<>\"\",\"3º - \",\"\")","v":""}]
[null,null,{"$f":"IF(D45<>\"\",\"4º - \",\"\")","v":""}]
[]
[]
[]
["3.","DESTINATÁRIOS A ABRANGER E PROJEÇÃO ANUAL DE RESULTADOS POR AÇÃO"]
[]
[]
[null,"Ano N"]
[null,null,null,null,null,null,null,null,null,"Destinatários a abranger",null,null,null,"Previsão de Conclusões",null,"Contratações",null,null,null,"Criação Próprio Emprego",null,"Medida Ativa de Emprego"]
[null,null,null,null,null,null,null,null,null,"Transitados",null,"Novos",null,null,null,"Termo certo",null,"Sem termo"]
[null,"IAOQE",null,null,null,null,null,null,null,null,null,null,null,null,null,"--",null,"--",null,"--",null,"--"]
[null,"Apoio à Colocação"]
[null,"Acompanhamento Pós-Colocação",null,null,null,null,null,null,null,null,null,null,null,null,null,"--",null,"--",null,"--",null,"--"]
[null,"Previsão de Pedidos",null,null,null,null,null,null,null,"--",null,null,null,"--",null,"--",null,"--",null,"--",null,"--"]
[]
[null,null,null,null,null,null,null,null,null,null,null,null,null,"Destinatários a abranger",null,"Previsão destinatários que concluem a ação",null,"Candidatos a Integrar "]
[null,null,null,null,null,null,null,null,null,null,null,null,null,null,null,null,null,"Taxa de certificação",null,"Taxa de empregabilidade"]
[null,"FP (inicial e contínua)"]
[null,"FP de dupla certificação/FP contínua UFCD c/ referenciais adaptados"]
[null,"FP - recuperação e atualização de competências "]
[null,"Apoio à frequência de ações de FP"]
[]
[null,"Ano N + 1"]
[null,null,null,null,null,null,null,null,null,"Destinatários a abranger",null,null,null,"Previsão de Conclusões",null,"Contratações",null,null,null,"Criação Próprio Emprego",null,"Medida Ativa de Emprego"]
[null,null,null,null,null,null,null,null,null,"Transitados",null,"Novos",null,null,null,"Termo certo",null,"Sem termo"]
[null,"IAOQE",null,null,null,null,null,null,null,null,null,null,null,null,null,"--",null,"--",null,"--",null,"--"]
[null,"Apoio à Colocação"]
[null,"Acompanhamento Pós-Colocação",null,null,null,null,null,null,null,null,null,null,null,null,null,"--",null,"--",null,"--",null,"--"]
[null,"Previsão de Pedidos",null,null,null,null,null,null,null,"--",null,null,null,"--",null,"--",null,"--",null,"--",null,"--"]
[]
[null,null,null,null,null,null,null,null,null,null,null,null,null,"Destinatários a abranger",null,"Previsão destinatários que concluem a ação",null,"Candidatos a Integrar "]
[null,null,null,null,null,null,null,null,null,null,null,null,null,null,null,null,null,"Taxa de certificação",null,"Taxa de empregabilidade"]
[null,"FP (inicial e contínua)"]
[null,"FP de dupla certificação/FP contínua UFCD c/ referenciais adaptados"]
[null,"FP - recuperação e atualização de competências "]
[null,"Apoio à frequência de ações de FP"]
[]
[null,"Ano N + 2"]
[null,null,null,null,null,null,null,null,null,"Destinatários a abranger",null,null,null,"Previsão de Conclusões",null,"Contratações",null,null,null,"Criação Próprio Emprego",null,"Medida Ativa de Emprego"]
[null,null,null,null,null,null,null,null,null,"Transitados",null,"Novos",null,null,null,"Termo certo",null,"Sem termo"]
[null,"IAOQE",null,null,null,null,null,null,null,null,null,null,null,null,null,"--",null,"--",null,"--",null,"--"]
[null,"Apoio à Colocação"]
[null,"Acompanhamento Pós-Colocação",null,null,null,null,null,null,null,null,null,null,null,null,null,"--",null,"--",null,"--",null,"--"]
[null,"Previsão de Pedidos",null,null,null,null,null,null,null,"--",null,null,null,"--",null,"--",null,"--",null,"--",null,"--"]
[]
[null,null,null,null,null,null,null,null,null,null,null,null,null,"Destinatários a abranger",null,"Previsão destinatários que concluem a ação",null,"Candidatos a Integrar "]
[null,null,null,null,null,null,null,null,null,null,null,null,null,null,null,null,null,"Taxa de certificação",null,"Taxa de empregabilidade"]
[null,"FP (inicial e contínua)"]
[null,"FP de dupla certificação/FP contínua UFCD c/ referenciais adaptados"]
[null,"FP - recuperação e atualização de competências "]
[null,"Apoio à frequência de ações de FP"]
[]
[null,"TOTAL"]
[null,null,null,null,null,null,null,null,null,"Destinatários a abranger",null,null,null,"Previsão de Conclusões",null,"Contratações",null,null,null,"Criação Próprio Emprego",null,"Medida Ativa de Emprego"]
[null,null,null,null,null,null,null,null,null,"Transitados",null,"Novos",null,null,null,"Termo certo",null,"Sem termo"]
[null,"IAOQE",null,null,null,null,null,null,null,{"$f":"J55+J70+J85","v":0},null,{"$f":"L55+L70+L85","v":0},null,{"$f":"N55+N70+N85","v":0}]
[null,"Apoio à Colocação",null,null,null,null,null,null,null,{"$f":"J56+J71+J86","v":0},null,{"$f":"L56+L71+L86","v":0},null,{"$f":"N56+N71+N86","v":0},null,{"$f":"P56+P71+P86","v":0},null,{"$f":"R56+R71+R86","v":0},null,{"$f":"T56+T71+T86","v":0},null,{"$f":"V56+V71+V86","v":0}]
[null,"Acompanhamento Pós-Colocação",null,null,null,null,null,null,null,0,null,0,null,0]
[null,"Previsão de Pedidos",null,null,null,null,null,null,null,"--",null,0,null,"--",null,"--",null,"--",null,"--",null,"--"]
[]
[null,null,null,null,null,null,null,null,null,null,null,null,null,"Destinatários a abranger",null,"Previsão destinatários que concluem a ação",null,"Candidatos a Integrar "]
[null,null,null,null,null,null,null,null,null,null,null,null,null,null,null,null,null,"Taxa de certificação",null,"Taxa de empregabilidade"]
[null,"FP (inicial e contínua)",null,null,null,null,null,null,null,null,null,null,null,{"$f":"N62+N77+N92","v":0},null,{"$f":"P62+P77+P92","v":0},null,{"$f":"R62+R77+R92","v":0},null,{"$f":"T62+T77+T92","v":0}]
[null,"FP de dupla certificação/FP contínua UFCD c/ referenciais adaptados",null,null,null,null,null,null,null,null,null,null,null,{"$f":"N63+N78+N93","v":0},null,{"$f":"P63+P78+P93","v":0},null,{"$f":"R63+R78+R93","v":0},null,{"$f":"T63+T78+T93","v":0}]
[null,"FP - recuperação e atualização de competências ",null,null,null,null,null,null,null,null,null,null,null,{"$f":"N64+N79+N94","v":0},null,{"$f":"P64+P79+P94","v":0},null,{"$f":"R64+R79+R94","v":0},null,{"$f":"T64+T79+T94","v":0}]
[null,"Apoio à frequência de ações de FP",null,null,null,null,null,null,null,null,null,null,null,{"$f":"N65+N80+N95","v":0},null,{"$f":"P65+P80+P95","v":0},null,{"$f":"R65+R80+R95","v":0},null,{"$f":"T65+T80+T95","v":0}]
[]
[]
["4.","PREVISÃO DOS CUSTOS COM AS AÇÕES"]
[]
[null,"Ano N"]
[null,null,null,null,null,null,null,null,null,null,null,"MONTANTE"]
[null,"RUBRICA",null,null,null,null,null,null,"IAOQE",null,null,"Apoio à Colocação",null,null,"APC",null,null,"Apoio Técnico",null,null,"TOTAL"]
[null,"1. Encargos com destinatários diretos",null,null,null,null,null,null,null,null,null,null,null,null,null,null,null,null,null,null,{"$f":"I118+L118+O118","v":0}]
[null,"2. Encargos com as ações",null,null,null,null,null,null,null,null,null,null,null,null,null,null,null,null,null,null,{"$f":"I119+L119+O119","v":0}]
[null,"3. Apoio à colocação dos destinatários",null,null,null,null,null,null,null,null,null,null,null,null,null,null,null,null,null,null,{"$f":"L120","v":0}]
[null,"4. Apoio técnico ao IEFP (nº2 do artº 34.º-B do Regulamento da rede de CRQE, na sua atual redação)",null,null,null,null,null,null,null,null,null,null,null,null,null,null,null,null,null,null,{"$f":"R121","v":0}]
[null,"TOTAL",null,null,null,null,null,null,{"$f":"I118+I119","v":0},null,null,{"$f":"L118+L119+L120","v":0},null,null,{"$f":"O118+O119+O121","v":0},null,null,{"$f":"R121","v":0},null,null,{"$f":"SUM(U118:W121)","v":0}]
[]
[null,"Ano N + 1"]
[null,null,null,null,null,null,null,null,null,null,null,"MONTANTE"]
[null,"RUBRICA",null,null,null,null,null,null,"IAOQE",null,null,"Apoio à Colocação",null,null,"APC",null,null,"Apoio Técnico",null,null,"TOTAL"]
[null,"1. Encargos com destinatários diretos",null,null,null,null,null,null,null,null,null,null,null,null,null,null,null,null,null,null,{"$f":"I127+L127+O127","v":0}]
[null,"2. Encargos com as ações",null,null,null,null,null,null,null,null,null,null,null,null,null,null,null,null,null,null,{"$f":"I128+L128+O128","v":0}]
[null,"3. Apoio à colocação dos destinatários",null,null,null,null,null,null,null,null,null,null,null,null,null,null,null,null,null,null,{"$f":"L129","v":0}]
[null,"4. Apoio técnico ao IEFP (nº2 do artº 34.º-B do Regulamento da rede de CRQE, na sua atual redação)",null,null,null,null,null,null,null,null,null,null,null,null,null,null,null,null,null,null,{"$f":"R130","v":0}]
[null,"TOTAL",null,null,null,null,null,null,{"$f":"I127+I128","v":0},null,null,{"$f":"L127+L128+L129","v":0},null,null,{"$f":"O127+O128+O130","v":0},null,null,{"$f":"R130","v":0},null,null,{"$f":"SUM(U127:W130)","v":0}]
[]
[null,"Ano N + 2"]
[null,null,null,null,null,null,null,null,null,null,null,"MONTANTE"]
[null,"RUBRICA",null,null,null,null,null,null,"IAOQE",null,null,"Apoio à Colocação",null,null,"APC",null,null,"Apoio Técnico",null,null,"TOTAL"]
[null,"1. Encargos com destinatários diretos",null,null,null,null,null,null,null,null,null,null,null,null,null,null,null,null,null,null,{"$f":"I136+L136+O136","v":0}]
[null,"2. Encargos com as ações",null,null,null,null,null,null,null,null,null,null,null,null,null,null,null,null,null,null,{"$f":"I137+L137+O137","v":0}]
[null,"3. Apoio à colocação dos destinatários",null,null,null,null,null,null,null,null,null,null,null,null,null,null,null,null,null,null,{"$f":"L138","v":0}]
[null,"4. Apoio técnico ao IEFP (nº2 do artº 34.º-B do Regulamento da rede de CRQE, na sua atual redação)",null,null,null,null,null,null,null,null,null,null,null,null,null,null,null,null,null,null,{"$f":"R139","v":0}]
[null,"TOTAL",null,null,null,null,null,null,{"$f":"I136+I137","v":0},null,null,{"$f":"L136+L137+L138","v":0},null,null,{"$f":"O136+O137+O139","v":0},null,null,{"$f":"R139","v":0},null,null,{"$f":"SUM(U136:W139)","v":0}]
[]
[null,"TOTAL"]
[null,null,null,null,null,null,null,null,null,null,null,"MONTANTE"]
[null,"RUBRICA",null,null,null,null,null,null,"IAOQE",null,null,"Apoio à Colocação",null,null,"APC",null,null,"Apoio Técnico",null,null,"TOTAL"]
[null,"1. Encargos com destinatários diretos",null,null,null,null,null,null,{"$f":"I118+I127+I136","v":0},null,null,{"$f":"L118+L127+L136","v":0},null,null,{"$f":"O118+O127+O136","v":0},null,null,null,null,null,{"$f":"I145+L145+O145","v":0}]
[null,"2. Encargos com as ações",null,null,null,null,null,null,{"$f":"I119+I128+I137","v":0},null,null,{"$f":"L119+L128+L137","v":0},null,null,{"$f":"O119+O128+O137","v":0},null,null,null,null,null,{"$f":"I146+L146+O146","v":0}]
[null,"3. Apoio à colocação dos destinatários",null,null,null,null,null,null,null,null,null,{"$f":"L120+L129+L138","v":0},null,null,null,null,null,null,null,null,{"$f":"L147","v":0}]
[null,"4. Apoio técnico ao IEFP (nº2 do artº 34.º-B do Regulamento da rede de CRQE, na sua atual redação)",null,null,null,null,null,null,null,null,null,null,null,null,null,null,null,{"$f":"R121+R130+R139","v":0},null,null,{"$f":"R148","v":0}]
[null,"TOTAL",null,null,null,null,null,null,{"$f":"I145+I146","v":0},null,null,{"$f":"L145+L146+L147","v":0},null,null,{"$f":"O145+O146","v":0},null,null,{"$f":"R148","v":0},null,null,{"$f":"SUM(U145:W148)","v":0}]
[]
[]
["5.","ASSINATURAS"]
[null,null,null,null,null,null,null,null,null,null,"Assinatura dos responsáveis da entidade"]
[]
[null,null,"Data"]
[]
[]
[]
[]
[]
[]
["A preencher pelo IEFP"]
["6.","PARECER"]
[]
[null,"Proposta de Aprovação"]
[]
[]
[null,"Número total de destinatários a abranger por ano"]
[]
[null,null,null,null,null,null,null,null,null,null,null,"Ano N",null,"Ano N + 1",null,"Ano N + 2",null,"TOTAL"]
[null,null,null,null,null,null,null,null,null,null,"IAOQE",null,null,null,null,null,null,{"$f":"L171+N171+P171","v":0}]
[null,null,null,null,null,null,null,null,null,null,"Apoio à Colocação",null,null,null,null,null,null,{"$f":"L172+N172+P172","v":0}]
[null,null,null,null,null,null,null,null,null,null,"Acompanhamento Pós-Colocação",null,null,null,null,null,null,0]
[null,null,null,null,null,null,null,null,null,null,null,null,null,null,null,null,null,{"$f":"L174+N174+P174","v":0}]
[]
[null,null,null,null,null,null,null,null,null,null,null,"Ano N",null,"Ano N + 1",null,"Ano N + 2",null,"TOTAL"]
[null,null,null,null,null,null,null,null,null,null,"FP (inicial e contínua)",null,null,null,null,null,null,{"$f":"L177+N177+P177","v":0}]
[null,null,null,null,null,null,null,null,null,null,"FP de dupla certificação/FP contínua UFCD c/ referenciais adaptados",null,null,null,null,null,null,{"$f":"L178+N178+P178","v":0}]
[null,null,null,null,null,null,null,null,null,null,"FP - recuperação e atualização de competências ",null,null,null,null,null,null,0]
[null,null,null,null,null,null,null,null,null,null,"Apoio à frequência de ações de FP",null,null,null,null,null,null,0]
[]
[null,null,null,null,null,null,null,null,null,null,null,"Ano N",null,null,null,"Ano N + 1",null,null,null,"Ano N + 2"]
[null,null,null,null,null,null,null,null,null,null,null,"Taxa de certificação",null,"Taxa de empregabilidade",null,"Taxa de certificação",null,"Taxa de empregabilidade",null,"Taxa de certificação",null,"Taxa de empregabilidade"]
[null,null,null,null,null,null,null,null,null,null,"FP (inicial e contínua)"]
[null,null,null,null,null,null,null,null,null,null,"FP de dupla certificação/FP contínua UFCD c/ referenciais adaptados"]
[null,null,null,null,null,null,null,null,null,null,"FP - recuperação e atualização de competências "]
[null,null,null,null,null,null,null,null,null,null,"Apoio à frequência de ações de FP"]
[]
[null,"Custos previstos: "]
[]
[null,"Ano N"]
[null,null,null,null,null,null,null,null,null,null,null,"MONTANTE"]
[null,"RUBRICA",null,null,null,null,null,null,"IAOQE",null,null,"Apoio à Colocação",null,null,"APC",null,null,"Apoio Técnico",null,null,"TOTAL"]
[null,"1. Encargos com destinatários diretos",null,null,null,null,null,null,null,null,null,null,null,null,null,null,null,"---",null,null,{"$f":"I194+L194+O194","v":0}]
[null,"2. Encargos com as ações",null,null,null,null,null,null,null,null,null,null,null,null,null,null,null,"---",null,null,{"$f":"I195+L195+O195","v":0}]
[null,"3. Apoio à colocação dos destinatários",null,null,null,null,null,null,"---",null,null,null,null,null,"---",null,null,"---",null,null,{"$f":"L196","v":0}]
[null,"4. Apoio técnico ao IEFP (nº2 do artº 34.º-B do Regulamento da rede de CRQE, na sua atual redação)",null,null,null,null,null,null,"---",null,null,"---",null,null,"---",null,null,null,null,null,{"$f":"R197","v":0}]
[null,"TOTAL",null,null,null,null,null,null,{"$f":"I194+I195","v":0},null,null,{"$f":"L194+L195+L196","v":0},null,null,{"$f":"O194+O195","v":0},null,null,{"$f":"R197","v":0},null,null,{"$f":"SUM(U194:W197)","v":0}]
[]
[null,"Ano N + 1"]
[null,null,null,null,null,null,null,null,null,null,null,"MONTANTE"]
[null,"RUBRICA",null,null,null,null,null,null,"IAOQE",null,null,"Apoio à Colocação",null,null,"APC",null,null,"Apoio Técnico",null,null,"TOTAL"]
[null,"1. Encargos com destinatários diretos",null,null,null,null,null,null,null,null,null,null,null,null,null,null,null,"---",null,null,{"$f":"I203+L203+O203","v":0}]
[null,"2. Encargos com as ações",null,null,null,null,null,null,null,null,null,null,null,null,null,null,null,"---",null,null,{"$f":"I204+L204+O204","v":0}]
[null,"3. Apoio à colocação dos destinatários",null,null,null,null,null,null,"---",null,null,null,null,null,"---",null,null,"---",null,null,{"$f":"L205","v":0}]
[null,"4. Apoio técnico ao IEFP (nº2 do artº 34.º-B do Regulamento da rede de CRQE, na sua atual redação)",null,null,null,null,null,null,"---",null,null,"---",null,null,"---",null,null,null,null,null,{"$f":"R206","v":0}]
[null,"TOTAL",null,null,null,null,null,null,{"$f":"I203+I204","v":0},null,null,{"$f":"L203+L204+L205","v":0},null,null,{"$f":"O203+O204","v":0},null,null,{"$f":"R206","v":0},null,null,{"$f":"SUM(U203:W206)","v":0}]
[]
[null,"Ano N + 2"]
[null,null,null,null,null,null,null,null,null,null,null,"MONTANTE"]
[null,"RUBRICA",null,null,null,null,null,null,"IAOQE",null,null,"Apoio à Colocação",null,null,"APC",null,null,"Apoio Técnico",null,null,"TOTAL"]
[null,"1. Encargos com destinatários diretos",null,null,null,null,null,null,null,null,null,null,null,null,null,null,null,"---",null,null,{"$f":"I212+L212+O212","v":0}]
[null,"2. Encargos com as ações",null,null,null,null,null,null,null,null,null,null,null,null,null,null,null,"---",null,null,{"$f":"I213+L213+O213","v":0}]
[null,"3. Apoio à colocação dos destinatários",null,null,null,null,null,null,"---",null,null,null,null,null,"---",null,null,"---",null,null,{"$f":"L214","v":0}]
[null,"4. Apoio técnico ao IEFP (nº2 do artº 34.º-B do Regulamento da rede de CRQE, na sua atual redação)",null,null,null,null,null,null,"---",null,null,"---",null,null,"---",null,null,null,null,null,{"$f":"R215","v":0}]
[null,"TOTAL",null,null,null,null,null,null,{"$f":"I212+I213","v":0},null,null,{"$f":"L212+L213+L214","v":0},null,null,{"$f":"O212+O213","v":0},null,null,{"$f":"R215","v":0},null,null,{"$f":"SUM(U212:W215)","v":0}]
[]
[null,"TOTAL"]
[null,null,null,null,null,null,null,null,null,null,null,"MONTANTE"]
[null,"RUBRICA",null,null,null,null,null,null,"IAOQE",null,null,"Apoio à Colocação",null,null,"APC",null,null,"Apoio Técnico",null,null,"TOTAL"]
[null,"1. Encargos com destinatários diretos",null,null,null,null,null,null,{"$f":"I194+I203+I212","v":0},null,null,{"$f":"L194+L203+L212","v":0},null,null,{"$f":"O194+O203+O212","v":0},null,null,"---",null,null,{"$f":"I221+L221+O221","v":0}]
[null,"2. Encargos com as ações",null,null,null,null,null,null,{"$f":"I195+I204+I213","v":0},null,null,{"$f":"L195+L204+L213","v":0},null,null,{"$f":"O195+O204+O213","v":0},null,null,"---",null,null,{"$f":"I222+L222+O222","v":0}]
[null,"3. Apoio à colocação dos destinatários",null,null,null,null,null,null,"---",null,null,{"$f":"L196+L205+L214","v":0},null,null,"---",null,null,"---",null,null,{"$f":"L223","v":0}]
[null,"4. Apoio técnico ao IEFP (nº2 do artº 34.º-B do Regulamento da rede de CRQE, na sua atual redação)",null,null,null,null,null,null,"---",null,null,"---",null,null,"---",null,null,{"$f":"R197+R206+R215","v":0},null,null,{"$f":"R224","v":0}]
[null,"TOTAL",null,null,null,null,null,null,{"$f":"I221+I222","v":0},null,null,{"$f":"L221+L222+L223","v":0},null,null,{"$f":"O221+O222","v":0},null,null,{"$f":"R224","v":0},null,null,{"$f":"SUM(U221:W224)","v":0}]
[]
[null,"Observações"]
[]
[]
[]
[]
[]
[]
[null,null,null,null,"Data da Análise:","-         -"]
[]
[]
[null,null,null,null,null,"O Técnico "]
[]
[]
[null,null,null,null,null,"Assinatura"]

{"sheet":"Anexo - Transitados","index":1,"n_rows":79,"n_cols":24,"rows_kept":79,"cut":false,"hidden":false,"merged":[[1,30,1,31],[1,32,1,33],[6,1,6,25],[13,5,13,15],[13,18,13,21],[19,2,20,2],[19,3,20,4],[19,5,20,12],[20,15,20,18],[20,19,20,20],[22,3,22,4],[22,5,22,12],[22,15,22,18],[22,19,22,20],[22,21,22,22],[22,23,22,24],[20,21,20,22],[20,23,20,24],[21,3,21,4],[21,5,21,12],[21,15,21,18],[21,19,21,20],[21,21,21,22],[21,23,21,24],[24,3,24,4],[24,5,24,12],[24,15,24,18],[24,19,24,20],[24,21,24,22],[24,23,24,24],[23,3,23,4],[23,5,23,12],[23,15,23,18],[23,19,23,20],[23,21,23,22],[23,23,23,24],[26,3,26,4],[26,5,26,12],[26,15,26,18],[26,19,26,20],[26,21,26,22],[26,23,26,24],[25,3,25,4],[25,5,25,12],[25,15,25,18],[25,19,25,20],[25,21,25,22],[25,23,25,24],[28,3,28,4],[28,5,28,12],[28,15,28,18],[28,19,28,20],[28,21,28,22],[28,23,28,24],[27,3,27,4],[27,5,27,12],[27,15,27,18],[27,19,27,20],[27,21,27,22],[27,23,27,24],[30,3,30,4],[30,5,30,12],[30,15,30,18],[30,19,30,20],[30,21,30,22],[30,23,30,24],[29,3,29,4],[29,5,29,12],[29,15,29,18],[29,19,29,20],[29,21,29,22],[29,23,29,24],[32,3,32,4],[32,5,32,12],[32,15,32,18],[32,19,32,20],[32,21,32,22],[32,23,32,24],[31,3,31,4],[31,5,31,12],[31,15,31,18],[31,19,31,20],[31,21,31,22],[31,23,31,24],[34,3,34,4],[34,5,34,12],[34,15,34,18],[34,19,34,20],[34,21,34,22],[34,23,34,24],[33,3,33,4],[33,5,33,12],[33,15,33,18],[33,19,33,20],[33,21,33,22],[33,23,33,24],[36,3,36,4],[36,5,36,12],[36,15,36,18],[36,19,36,20],[36,21,36,22],[36,23,36,24],[35,3,35,4],[35,5,35,12],[35,15,35,18],[35,19,35,20],[35,21,35,22],[35,23,35,24],[38,3,38,4],[38,5,38,12],[38,15,38,18],[38,19,38,20],[38,21,38,22],[38,23,38,24],[37,3,37,4],[37,5,37,12],[37,15,37,18],[37,19,37,20],[37,21,37,22],[37,23,37,24],[40,3,40,4],[40,5,40,12],[40,15,40,18],[40,19,40,20],[40,21,40,22],[40,23,40,24],[39,3,39,4],[39,5,39,12],[39,15,39,18],[39,19,39,20],[39,21,39,22],[39,23,39,24],[45,15,45,18],[45,19,45,20],[45,21,45,22],[45,23,45,24],[41,3,41,4],[41,5,41,12],[41,15,41,18],[41,19,41,20],[41,21,41,22],[41,23,41,24],[47,3,47,4],[47,5,47,12],[47,15,47,18],[47,19,47,20],[47,21,47,22],[47,23,47,24],[46,3,46,4],[46,5,46,12],[46,15,46,18],[46,19,46,20],[46,21,46,22],[46,23,46,24],[49,3,49,4],[49,5,49,12],[49,15,49,18],[49,19,49,20],[49,21,49,22],[49,23,49,24],[48,3,48,4],[48,5,48,12],[48,15,48,18],[48,19,48,20],[48,21,48,22],[48,23,48,24],[51,3,51,4],[51,5,51,12],[51,15,51,18],[51,19,51,20],[51,21,51,22],[51,23,51,24],[50,3,50,4],[50,5,50,12],[50,15,50,18],[50,19,50,20],[50,21,50,22],[50,23,50,24],[53,3,53,4],[53,5,53,12],[53,15,53,18],[53,19,53,20],[53,21,53,22],[53,23,53,24],[52,3,52,4],[52,5,52,12],[52,15,52,18],[52,19,52,20],[52,21,52,22],[52,23,52,24],[55,3,55,4],[55,5,55,12],[55,15,55,18],[55,19,55,20],[55,21,55,22],[55,23,55,24],[54,3,54,4],[54,5,54,12],[54,15,54,18],[54,19,54,20],[54,21,54,22],[54,23,54,24],[57,3,57,4],[57,5,57,12],[57,15,57,18],[57,19,57,20],[57,21,57,22],[57,23,57,24],[56,3,56,4],[56,5,56,12],[56,15,56,18],[56,19,56,20],[56,21,56,22],[56,23,56,24],[59,3,59,4],[59,5,59,12],[59,15,59,18],[59,19,59,20],[59,21,59,22],[59,23,59,24],[58,3,58,4],[58,5,58,12],[58,15,58,18],[58,19,58,20],[58,21,58,22],[58,23,58,24],[61,3,61,4],[61,5,61,12],[61,15,61,18],[61,19,61,20],[61,21,61,22],[61,23,61,24],[60,3,60,4],[60,5,60,12],[60,15,60,18],[60,19,60,20],[60,21,60,22],[60,23,60,24],[63,3,63,4],[63,5,63,12],[63,15,63,18],[63,19,63,20],[63,21,63,22],[63,23,63,24],[62,3,62,4],[62,5,62,12],[62,15,62,18],[62,19,62,20],[62,21,62,22],[62,23,62,24],[65,3,65,4],[65,5,65,12],[65,15,65,18],[65,19,65,20],[65,21,65,22],[65,23,65,24],[64,3,64,4],[64,5,64,12],[64,15,64,18],[64,19,64,20],[64,21,64,22],[64,23,64,24],[67,3,67,4],[67,5,67,12],[67,15,67,18],[67,19,67,20],[67,21,67,22],[67,23,67,24],[66,3,66,4],[66,5,66,12],[66,15,66,18],[66,19,66,20],[66,21,66,22],[66,23,66,24],[69,3,69,4],[69,5,69,12],[69,15,69,18],[69,19,69,20],[69,21,69,22],[69,23,69,24],[68,3,68,4],[68,5,68,12],[68,15,68,18],[68,19,68,20],[68,21,68,22],[68,23,68,24],[71,3,71,4],[71,5,71,12],[71,15,71,18],[71,19,71,20],[71,21,71,22],[71,23,71,24],[70,3,70,4],[70,5,70,12],[70,15,70,18],[70,19,70,20],[70,21,70,22],[70,23,70,24],[73,3,73,4],[73,5,73,12],[73,15,73,18],[73,19,73,20],[73,21,73,22],[73,23,73,24],[72,3,72,4],[72,5,72,12],[72,15,72,18],[72,19,72,20],[72,21,72,22],[72,23,72,24],[75,19,75,20],[75,21,75,22],[75,23,75,24],[74,3,74,4],[74,5,74,12],[74,15,74,18],[74,19,74,20],[74,21,74,22],[74,23,74,24],[44,2,45,2],[44,3,45,4],[44,5,45,12],[78,3,78,4],[78,5,78,12],[78,15,78,18],[78,19,78,20],[78,21,78,22],[78,23,78,24],[77,3,77,4],[77,5,77,12],[77,15,77,18],[77,19,77,20],[77,21,77,22],[77,23,77,24],[76,3,76,4],[76,5,76,12],[76,15,76,18],[76,19,76,20],[76,21,76,22],[76,23,76,24],[75,3,75,4],[75,5,75,12],[75,15,75,18]]}
[]
[]
[]
[]
[]
[]
[null,"CENTROS DE RECURSOS PARA A QUALIFICAÇÃO E O EMPREGO"]
[null,"LISTAGEM DOS DESTINATÁRIOS TRANSITADOS"]
[null,"PLANO DE AÇÃO - ANEXO"]
[null,"\"NOTA: Escrever o nome da Ação na célula B10\""]
[]
["1.","IDENTIFICAÇÃO DO CENTRO DE RECURSOS PARA A QUALIFICAÇÃO E O EMPREGO"]
[]
[null,"1.1 Denominação Social",null,null,null,null,null,null,null,null,null,null,null,null,null,null,null,"1.2 NIPC",null,null,null,null,null,"Folha n.º"]
[]
[]
[]
["2.","CARACTERIZAÇÃO DOS DESTINATÁRIOS DAS AÇÕES TRANSITADOS DO ANO ANTERIOR"]
[]
[null,null,"N.º de Ordem","N.º de Utente (IEFP)",null,"Nome",null,null,null,null,null,null,null,"Género",null,"Encaminhamento",null,null,null,null,null,"Ação"]
[null,null,null,null,null,null,null,null,null,null,null,null,null,"M","F","Serviço de Emprego",null,null,null,"Data (dd/mm/aaaa)",null,"Data de Início (dd/mm/aaaa)",null,"Data de Conclusão (dd/mm/aaaa)"]
[null,null,{"$f":"IF(D22<>0,C21+1,\"  \")","v":"  "}]
[null,null,"  "]
[null,null,"  "]
[null,null,"  "]
[null,null,"  "]
[null,null,"  "]
[null,null,"  "]
[null,null,"  "]
[null,null,"  "]
[null,null,"  "]
[null,null,"  "]
[null,null,"  "]
[null,null,"  "]
[null,null,"  "]
[null,null,"  "]
[null,null,"  "]
[null,null,"  "]
[null,null,"  "]
[null,null,"  "]
[null,null,"  "]
[null,null,"  "]
["2.","CARACTERIZAÇÃO DOS DESTINATÁRIOS DAS AÇÕES TRANSITADOS DO ANO ANTERIOR (Continuação)"]
[]
[null,null,"N.º de Ordem","N.º de Utente (IEFP)",null,"Nome",null,null,null,null,null,null,null,"Género",null,"Encaminhamento",null,null,null,null,null,"Ação"]
[null,null,null,null,null,null,null,null,null,null,null,null,null,"M","F","Serviço de Emprego",null,null,null,"Data (dd/mm/aaaa)",null,"Data de Início (dd/mm/aaaa)",null,"Data de Conclusão (dd/mm/aaaa)"]
[null,null,"  "]
[null,null,"  "]
[null,null,"  "]
[null,null,"  "]
[null,null,"  "]
[null,null,"  "]
[null,null,"  "]
[null,null,"  "]
[null,null,"  "]
[null,null,"  "]
[null,null,"  "]
[null,null,"  "]
[null,null,"  "]
[null,null,"  "]
[null,null,"  "]
[null,null,"  "]
[null,null,"  "]
[null,null,"  "]
[null,null,"  "]
[null,null,"  "]
[null,null,"  "]
[null,null,"  "]
[null,null,"  "]
[null,null,"  "]
[null,null,"  "]
[null,null,"  "]
[null,null,"  "]
[null,null,"  "]
[null,null,"  "]
[null,null,"  "]
[null,null,"  "]
[null,null,"  "]
[null,null,"  "]

{"sheet":"INSTRUÇÕES","index":2,"n_rows":84,"n_cols":2,"rows_kept":84,"cut":false,"hidden":false,"merged":[]}
[]
[]
[]
[]
[]
[]
[null,"AUXILIAR DE PREENCHIMENTO"]
[]
[]
[]
[null,"PLANO DE AÇÃO"]
[]
[null,"O plano de ação destina-se a ser apresentado pelos CRQE credenciados pelo IEFP."]
[null,"É apresentado ao IEFP por triénio, no prazo de 15 dias úteis após a comunicação do IEFP do número de candidatos a encaminhar.\nSempre que se perspetive uma variação anual da execução igual ou superior a 20% do que foi aprovado para o ano em causa, nomeadamente tendo em conta o aumento do número de encaminhamentos previstos e respetivo valor financeiro, deve ser apresentado um pedido de alteração ao plano de ação."]
[null,"No preenchimento do Plano de Ação, os CRQE de Nível 2 (e/ou de nível 3, conforme aplicável) devem contemplar também as seguintes situações:\n- IAOQE, os encaminhamentos efetuados para Avaliação da Capacidade de Trabalho de pessoas com deficiência, Prescrição de produtos de apoio indispensáveis à formação profissional e ao emprego e Apoio no Retorno ao trabalho das pessoas que adquirem deficiência na vida adulta e profissional;\n- Apoio à frequência de ações de formação profissional, inicial e contínua, realizadas pelos centros de formação de gestão direta e de gestão participada;\n- Recuperação e atualização de competências prevista no n.º 4 do artigo 8.º do Decreto-Lei n.º 290/2009, de 12 de outubro, na sua atual redação."]
[]
[null,"QUADRO 1 – IDENTIFICAÇÃO DA ENTIDADE"]
[null,"A preencher pelo CRQE"]
[]
[null,"Indicar o nível ou níveis de credenciação atribuída"]
[null,"Denominação social / NIPC / Endereço / C. Postal / Telefone / Concelho / Pessoa a contactar /Cargo / Telefone - Preencher todos os campos de forma a facilitar a identificação e futuros contactos."]
[]
[null,"QUADRO 2 – ÁREA DE INTERVENÇÃO"]
[null,"A preencher pelo CRQE"]
[]
[null,"Indicar o(s) Serviço(s) de Emprego para os quais foram credenciados como CRQE de nível 1\nCaixa de seleção automátiva: colocar o cursor nas células  C27, c28 e C29 e escolher o(s) Serviço(s) de Emprego para onde o CRQE ficou credenciado."]
[null,"Indicar as CIM para os quais foram credenciados como CRQE de nível 2.\nCaixa de seleção automátiva: colocar o cursor nas células  B34 e B35 e escolher a(s) CIM para onde o CRQE ficou credenciado.\nA informação relativa aos Serviços de Emprego e Concelhos de abrangência é automática"]
[null,"Indicar a área geográfica para a qual foi credenciado como CRQE de nível 3. - Neste campo selecionar se a credenciação tem abrangência Nacional ou Regional e no caso de ter sido a nível regional indicar a(s) respetiva(s) Delegações Regionais (caixa de seleção)."]
[]
[null,"QUADRO 3 –  DESTINATÁRIOS A ABRANGER E PROJEÇÃO ANUAL DE RESULTADOS POR AÇÃO"]
[null,"A preencher pelo CRQE"]
[null,"Em relação a cada ação deve ser indicado, para cada ano do triénio, a seguinte informação:"]
[null,"-  o número de pessoas que se prevê que venham a frequentar as ações (incluindo os transitados)."]
[null,"- o n.º de pessoas que se prevê venham a concluir a ação."]
[null,"Na ação Apoio à Colocação indicar o n.º de pessoas que se prevê venham a celebrar contrato de trabalho (termo certo e sem termo), a criar o próprio emprego e a integrar numa medida ativa de emprego (ex. estágios, contrato emprego-inserção)."]
[]
[null,"Indicar para cada uma das ações abaixo discriminadas a previsão do número total de pessoas abrangidas em cada um dos anos bem como as previsões da taxa de certificação e da taxa de empregabilidade:\n- FP (inicial e contínua);\n- FP de dupla certificação/FP contínua UFCD c/ referenciais adaptados;\n- FP - recuperação e atualização de competências;\n- Apoio à frequência de ações de FP."]
[]
[null,"QUADRO 4 – PREVISÃO DOS CUSTOS COM AS AÇÕES"]
[null,"A preencher pelo CRQE"]
[]
[null,"Rubricas 1 e 2 - Indicar por rubrica e por ação, os montantes necessários tendo como base o definido no Regulamento da rede de CRQE e demais legislação aplicável (Decreto-Lei nº 290/2009, de 12 de outubro, na sua redação atual, e anexo III do Despacho n.º 8376-B/2015, de 30 de julho, na sua redação atual, republicado pela Declaração de Retificação n.º 568/2025/2, de 20 de junho). Incluir na Rubrica 2 a previsão das despesas incorridas com a realização do apoio à frequência de ações de formação, inicial e contínua, realizadas pelos centros de formação de gestão direta e de gestão participada do IEFP (previsto no n.º 8 do artigo 25.º do Regulamento da rede de CRQE)."]
[null,"Rubrica 3 - Indicar o montante previsto para pagar o apoio financeiro pela colocação dos destinatários, previsto no artigo 26.º do Regulamento da rede de CRQE, na sua redação atual."]
[null,"Rubrica 4 - Despesa prevista no âmbito do apoio técnico ao IEFP, previsto no n.º 2 do artigo 34.º-B do Regulamento da rede de CRQE, na sua redação atual."]
[]
[null,"QUADRO 5 – ASSINATURAS"]
[null,"A preencher pelo CRQE/Entidade"]
[]
[null,"O formulário deve ser assinado pelo(s) responsável(eis) da entidade com poderes para o ato."]
[]
[null,"QUADRO 6 - PARECER"]
[null,"A preencher pelo IEFP"]
[]
[null,"N.º total de destinatários – Indicar, para cada ano do triénio, o número de pessoas que se prevê que venham a frequentar as  ações.\nNo caso da FP deve indicar-se o número de abrangidos para cada um dos anos bem como as taxas credenciação e empregabilidade previstas."]
[null,"Custos previstos "]
[null,"Rubricas 1 a 2 - indicar por rubrica e por ação, os montantes a aprovar tendo em consideração os montantes máximos definidos no Regulamento da rede de CRQE e demais legislação aplicável (Decreto-Lei nº 290/2009, de 12 de outubro, na sua redação atual, e anexo III do Despacho nº 8376-B/2015, de 30 de julho, na sua redação atual, republicado pela Declaração de Retificação n.º 568/2025/2, de 20 de junho)."]
[null,"Rubrica 3 - Indicar o montante a aprovar relativo ao apoio financeiro para a colocação dos destinatários, tendo em consideração os montantes máximos previstos no artigo 26.º do Regulamento da rede de CRQE."]
[null,"Rubrica 4 - indicar o montante máximo a aprovar no âmbito do apoio técnico ao IEFP, previsto no n.º 2 do artigo 34.º-B do Regulamento da rede de CRQE, na sua redação atual."]
[null,"Observações – indicar relevâncias pertinentes justificando a proposta."]
[null,"Data da análise / Técnico / Assinatura – data, nome e assinatura do técnico que efetuou a análise e apresenta a proposta para aprovação."]
[]
[]
[]
[null,"ANEXO - LISTAGEM DOS DESTINATÁRIOS TRANSITADOS"]
[]
[null,"Este formulário destina-se apenas aos CRQE e deve ser preenchido um exemplar por ação em que haja destinatários que transitem para o ano seguinte."]
[]
[]
[null,"QUADRO 1 - CARACTERIZAÇÃO DOS DESTINATÁRIOS DAS AÇÕES TRANSITADOS DO ANO ANTERIOR"]
[null,"A preencher pelo CRQE"]
[]
[null,"Denominação social e NIPC"]
[]
[null,"QUADRO 2 - CARACTERIZAÇÃO DOS DESTINATÁRIOS DAS AÇÕES TRANSITADOS DO ANO ANTERIOR"]
[null,"A preencher pelo CRQE"]
[]
[null,"N.º de ordem – Registar sequencialmente o n.º dado ao destinatário nesta listagem."]
[null,"N.º de utente do IEFP – Inscrever o n.º do destinatário atribuído pelo IEFP ."]
[null,"Nome – Nome completo do destinatário "]
[null,"Género – Masculino / Feminino"]
[null,"Serviço de Emprego – Indicação do Serviço de Emprego que encaminhou o candidato"]
[null,"Data – Indicar a data (dia-mês-ano) do encaminhamento do Serviço de Emprego."]
[null,"Data de início – data real do início da ação (dd-mm-aaaa)"]
[null,"Data previsível de conclusão - data em que se prevê venha a ser concluída a ação."]

{"sheet":"SE e CIM","index":3,"n_rows":93,"n_cols":8,"rows_kept":93,"cut":false,"hidden":true,"merged":[]}
["CIM","DR","Serviço de Emprego","Concelhos",null,null,"DN","SE"]
[]
["Alto Minho","N","Viana do Castelo","Caminha; Ponte De Lima; Viana Do Castelo; Melgaço; Monção; Valença; Vila Nova De Cerveira; Arcos De Valdevez; Paredes De Coura; Ponte Da Barca ",null,null,"Norte","SE Maia"]
["Alto Tâmega","N","Chaves","Boticas; Chaves; Montalegre; Ribeira De Pena; Valpaços; Vila Pouca De Aguiar ",null,null,"Norte","SE Bragança"]
["Área Metropolitana do Porto","N","Santo Tirso; Porto; Póvoa de Varzim, Matosinhos; Valongo; São João da Madeira,Gondomar; Maia; VN Gaia","Santo Tirso; Trofa; Póvoa De Varzim; Vila Do Conde; Matosinhos; Porto; Paredes; Valongo; Gondomar; Maia; Espinho; VN Gaia; Arouca; Santa Maria Da Feira; Oliveira De Azeméis; São João Da Madeira; Vale De Cambra",null,null,"Norte","SE Mirandela"]
["Ave","N","VN Famalicão; Guimarães; Fafe","Vila Nova De Famalicão; Guimarães; Vizela ; ",null,null,"Norte","SE Gondomar"]
["Cávado","N","Braga; Barcelos","Amares; Braga; Terras De Bouro; Vila Verde; Barcelos; Esposende; Fafe; Póvoa De Lanhoso; Vieira Do Minho; Cabeceiras De Basto; Mondim De Basto ",null,null,"Norte","SE Póvoa de Varzim"]
["Douro","N","Vila Real; Lamego","Carrazeda De Ansiães; Alijó; Mesão Frio; Murça; Peso Da Régua; Sabrosa; Santa Marta De Penaguião; Vila Real; Freixo de Espada À Cinta; Torre De Moncorvo; Vila Nova De Foz Côa; Armamar; Lamego; Moimenta Da Beira; Penedono; São João Da Pesqueira; Sernancelhe; Tabuaço; Tarouca ",null,null,"Norte","SE Felgueiras"]
["Tâmega e Sousa","N","Penafiel; Amarante; Felgueiras","Castelo De Paiva; Lousada; Paços De Ferreira; Penafiel; Cinfães; Celorico De Basto; Amarante; Baião; Marco De Canaveses; Resende; Felgueiras",null,null,"Norte","SE Guimarães"]
["Trás-os-Montes","N","Bragança; Mirandela","Bragança; Miranda Do Douro; Vimioso; Vinhais ;Mirandela; Vila Flor; Alfândega Da Fé; Macedo De Cavaleiros; Mogadouro ",null,null,"Norte","SE Barcelos"]
["Aveiro","C","Águeda; Aveiro","Águeda; Albergaria-A-Velha; Anadia; Oliveira Do Bairro; Sever Do Vouga Aveiro; Estarreja; Ílhavo; Murtosa; Ovar; Vagos ",null,null,"Norte","SE VNova Gaia"]
["Beira Baixa","C","Castelo Branco; Sertã","Castelo Branco; Idanha-A-Nova; Penamacor; Vila Velha De Rodão Oleiros; Proença-A-Nova; Sertã; Vila De Rei ",null,null,"Norte","SE Fafe"]
["Beiras e Serra da Estrela","C","Guarda; Pinhel; Seia; Covilhã","Celorico Da Beira; Guarda; Manteigas; Sabugal Almeida; Figueira De Castelo Rodrigo; Meda; Pinhel; Trancoso Fornos De Algodres; Gouveia; Seia Belmonte; Covilhã; Fundão ",null,null,"Norte","SE Amarante"]
["Coimbra","C","Coimbra; Arganil; Lousã; Figueira da Foz","Mealhada; Cantanhede; Coimbra; Condeixa-A-Nova; Penacova; Mortágua Arganil; Góis; Oliveira Do Hospital; Pampilhosa Da Serra; Tábua Lousã; Miranda Do Corvo; Penela; Vila Nova De Poiares Figueira Da Foz; Mira; Montemor-O-Velho; Soure ",null,null,"Norte","SE Valongo"]
["Leiria","C","Leiria; Marinha Grande; Figueiró dos Vinhos; ","Batalha; Leiria; Pombal; Porto De Mós Marinha Grande Alvaiázere; Ansião; Castanheira De Pera; Figueiró Dos Vinhos; Pedrógão Grande ",null,null,"Norte","SE Santo Tirso"]
["Viseu e Dão Lafões","C","Viseu;Tondela;São Pedro do Sul","Aguiar Da Beira; Mangualde; Nelas; Penalva Do Castelo; Sátão; Vila Nova De Paiva; Viseu Carregal Do Sal; Santa Comba Dão; Tondela Castro Daire; Oliveira De Frades; São Pedro Do Sul; Vouzela ",null,null,"Norte","SE Viana do Castelo"]
["Área Metropolitana de Lisboa","LX","Benfica; Picoas; Amadora; Loures; Setúbal; Seixal; Barreiro; Montijo; Almada; Sintra; Cascais; Vila Franca de Xira","Lisboa, Odivelas, Loures, Mafra, Vila Franca De Xira,  Sintra, Amadora, Cascais; Oeiras, Seixal; Sesimbra, Almada, Alcochete; Montijo, Barreiro; Moita Palmela; Setúbal ",null,null,"Norte","SE São João da Madeira"]
["Lezíria do Tejo","LX","Santarém; Salvaterra de Magos","Azambuja; Almeirim; Alpiarça; Cartaxo; Chamusca; Golegã; Rio Maior; Santarém Benavente; Coruche; Salvaterra De Magos ",null,null,"Norte","SE Porto"]
["Medio Tejo","LX","Abrantes; Torres Novas; Tomar","Abrantes; Constância; Mação; Sardoal Alcanena; Entroncamento; Torres Novas; Vila Nova Da Barquinha Ferreira Do Zêzere; Tomar; Ourém ",null,null,"Norte","SE Penafiel"]
["Oeste","LX","Alcobaça; Caldas da Rainha; Torres Vedras","Alcobaça; Nazaré Bombarral; Caldas Da Rainha; Óbidos; Peniche; Cadaval Alenquer; Arruda Dos Vinhos; Lourinhã; Sobral Monte Agraço; Torres Vedras ",null,null,"Norte","SE Braga"]
["Alentejo Central","A","Estremoz; Évora; Montemor-o-Novo","Alandroal; Borba; Estremoz; Vila Viçosa Arraiolos; Évora; Mourão; Portel; Redondo; Reguengos De Monsaraz; Viana Do Alentejo Montemor-O-Novo; Mora; Vendas Novas ",null,null,"Norte","SE Chaves"]
["Alentejo Litoral","A","Alcácer do Sal; Sines","Alcácer Do Sal; Grândola Odemira; Santiago Do Cacém; Sines ",null,null,"Norte","SE Vila Real"]
["Alto Alentejo","A","Elvas; Ponte de Sôr; Portalegre","Arronches; Campo Maior; Elvas; Monforte Avis; Gavião; Ponte De Sor; Sousel Alter Do Chão; Castelo De Vide; Crato; Fronteira; Marvão; Nisa; Portalegre ",null,null,"Centro","SE Pinhel"]
["Baixo Alentejo","A","Beja;Ourique; Moura","Aljustrel; Alvito; Beja; Cuba; Ferreira Do Alentejo; Mértola; Vidigueira Almodôvar; Castro Verde; Ourique Barrancos; Moura; Serpa ",null,null,"Centro","SE Seia"]
["Algarve","G","Faro; Loulé; Vila Real de Santo António; Lagos; Portimão","Faro; Olhão; São Brás De Alportel Alcoutim; Castro Marim; Tavira; Vila Real De Santo António Albufeira; Loulé Aljezur; Lagos; Vila Do Bispo Lagoa; Monchique; Portimão; Silves ",null,null,"Centro","SE Sertã"]
[null,null,null,null,null,null,"Centro","SE Figueiró dos Vinhos"]
[null,null,null,null,null,null,"Centro","SE Marinha Grande"]
[null,null,null,null,null,null,"Centro","SE Covilhã"]
[null,null,null,null,null,null,"Centro","SE Castelo Branco"]
[null,null,null,null,null,null,"Centro","SE São Pedro do Sul"]
[null,null,null,null,null,null,"Centro","SE Tondela"]
[null,null,null,null,null,null,"Centro","SE Figueira da Foz"]
[null,null,null,null,null,null,"Centro","SE Aveiro"]
[null,null,null,null,null,null,"Centro","SE Guarda"]
[null,null,null,null,null,null,"Centro","SE Águeda"]
[null,null,null,null,null,null,"Centro","SE Arganil"]
[null,null,null,null,null,null,"Centro","SE Viseu"]
[null,null,null,null,null,null,"Centro","SE Leiria"]
[null,null,null,null,null,null,"Centro","SE Coimbra"]
[null,null,null,null,null,null,"Centro","SE Lousã"]
[null,null,null,null,null,null,"Lisboa e Vale do Tejo","SE Montijo"]
[null,null,null,null,null,null,"Lisboa e Vale do Tejo","SE Torres Novas"]
[null,null,null,null,null,null,"Lisboa e Vale do Tejo","SE Tomar"]
[null,null,null,null,null,null,"Lisboa e Vale do Tejo","SE Abrantes"]
[null,null,null,null,null,null,"Lisboa e Vale do Tejo","SE Salvaterra de Magos"]
[null,null,null,null,null,null,"Lisboa e Vale do Tejo","SE Vila Franca de Xira"]
[null,null,null,null,null,null,"Lisboa e Vale do Tejo","SE Santarém"]
[null,null,null,null,null,null,"Lisboa e Vale do Tejo","SE Amadora"]
[null,null,null,null,null,null,"Lisboa e Vale do Tejo","SE Sintra"]
[null,null,null,null,null,null,"Lisboa e Vale do Tejo","SE Cascais"]
[null,null,null,null,null,null,"Lisboa e Vale do Tejo","SE Setúbal"]
[null,null,null,null,null,null,"Lisboa e Vale do Tejo","SE Alcobaça"]
[null,null,null,null,null,null,"Lisboa e Vale do Tejo","SE Caldas da Rainha"]
[null,null,null,null,null,null,"Lisboa e Vale do Tejo","SE Torres Vedras"]
[null,null,null,null,null,null,"Lisboa e Vale do Tejo","SE Odivelas"]
[null,null,null,null,null,null,"Lisboa e Vale do Tejo","SE Loures"]
[null,null,null,null,null,null,"Lisboa e Vale do Tejo","SE Benfica"]
[null,null,null,null,null,null,"Lisboa e Vale do Tejo","SE Barreiro"]
[null,null,null,null,null,null,"Lisboa e Vale do Tejo","SE Almada"]
[null,null,null,null,null,null,"Lisboa e Vale do Tejo","SE Seixal"]
[null,null,null,null,null,null,"Lisboa e Vale do Tejo","SE Picoas"]
[null,null,null,null,null,null,"Alentejo","SE Sines"]
[null,null,null,null,null,null,"Alentejo","SE Salvaterra de Magos"]
[null,null,null,null,null,null,"Alentejo","SE Alcácer do Sal"]
[null,null,null,null,null,null,"Alentejo","SE Portalegre"]
[null,null,null,null,null,null,"Alentejo","SE Elvas"]
[null,null,null,null,null,null,"Alentejo","SE Montemor"]
[null,null,null,null,null,null,"Alentejo","SE Moura"]
[null,null,null,null,null,null,"Alentejo","SE Ourique"]
[null,null,null,null,null,null,"Alentejo","SE Beja"]
[null,null,null,null,null,null,"Alentejo","SE Ponte de Sôr"]
[null,null,null,null,null,null,"Alentejo","SE Évora"]
[null,null,null,null,null,null,"Alentejo","SE Estremoz"]
[null,null,null,null,null,null,"Algarve","SE Lagos"]
[null,null,null,null,null,null,"Algarve","SE Vila Real Santo António"]
[null,null,null,null,null,null,"Algarve","SE Faro"]
[null,null,null,null,null,null,"Algarve","SE Portimão"]
[null,null,null,null,null,null,"Algarve","SE Loulé"]
[]
[]
[]
[]
[]
[]
[]
[]
[]
[]
[null,null,null,"Delegação Regional do Norte",1]
[null,null,null,"Delegação Regional do Centro",2]
[null,null,null,"Delegação Regional de Lisboa e Vale do Tejo",3]
[null,null,null,"Delegação Regional do Alentejo",4]
[null,null,null,"Delegação Regional do Algarve",5]